lending/lending_fUSD_20241228
["ID","MTS","AMOUNT","RATE_DAILY","PERIOD"]
[346925667,1735389033719,-500.0,0.00011475,2]
[346925668,1735389033729,-500.0,0.00011475,2]
[346925669,1735389033739,-500.0,0.00011475,2]
[346925670,1735389033749,-500.0,0.00011475,2]
[346925671,1735389033759,-500.0,0.00011475,2]
[346925672,1735389033768,-500.0,0.00011475,2]
[346925673,1735389033778,-682.83,0.00011475,2]
[346925674,1735389033788,-1319.69,0.00011475,2]
[346925675,1735389033797,-500.0,0.00011475,2]
[346925676,1735389033807,-500.0,0.00011475,2]
[346925677,1735389034064,-500.0,0.00011475,2]
[346925678,1735389034074,-823.95,0.00011475,2]
[346925679,1735389034084,-500.0,0.00011475,2]
[346925680,1735389034093,-500.0,0.00011475,2]
[346925681,1735389034103,-500.0,0.00011475,2]
[346925682,1735389034112,-500.0,0.00011475,2]
[346925683,1735389034122,-1555.43,0.00011475,2]
[346925684,1735389034131,-500.0,0.00011475,2]
[346925685,1735389034141,-500.0,0.00011475,2]
[346925686,1735389034150,-1617.08,0.00011475,2]
[346925687,1735389034159,-500.0,0.00011475,2]
[346925688,1735389034169,-500.0,0.00011475,2]
[346925689,1735389034178,-500.0,0.00011475,2]
[346925690,1735389034187,-552.78,0.00011475,2]
[346925691,1735389034201,-53.7287442,0.00011475,2]
[346925692,1735389034216,-892.8612558,0.00011475,2]
[346925693,1735389034225,-500.0,0.00011475,2]
[346925694,1735389034235,-500.0,0.00011475,2]
[346925695,1735389034246,-223.21247347,0.00011475,2]
[346925696,1735389034276,-276.78752653,0.00011475,2]
[346925697,1735389034286,-500.0,0.00011475,2]
[346925698,1735389034298,-500.0,0.00011475,2]
[346925699,1735389034308,-550.42184102,0.00011475,2]
[346925700,1735389034321,-412.40818989,0.00011475,2]
[346925701,1735389034332,-104.06996909,0.00011475,2]
[346925702,1735389034342,-500.0,0.00011475,2]
[346925703,1735389034352,-500.0,0.00011475,2]
[346925704,1735389034362,-2018.13,0.00011475,2]
[346925705,1735389034372,-1076.50914646,0.00011475,2]
[346925706,1735389034388,-2291.17085354,0.00011475,2]
[346925707,1735389034398,-500.0,0.00011475,2]
[346925708,1735389034408,-3068.13,0.00011475,2]
[346925709,1735389034419,-500.0,0.00011475,2]
[346925710,1735389034429,-727.32,0.00011475,2]
[346925711,1735389034439,-351.30726405,0.00011475,2]
[346925712,1735389034450,-727.87273595,0.00011475,2]
[346925713,1735389034460,-18838.2,0.00011475,2]
[346925714,1735389034469,-500.0,0.00011475,2]
[346925715,1735389034479,-500.0,0.00011475,2]
[346925716,1735389034488,-272.55682306,0.00011475,2]
[346925717,1735389034498,-500.0,0.00011475,2]
[346925718,1735389034508,-500.0,0.00011475,2]
[346925719,1735389034518,-1704.12,0.00011475,2]
[346925720,1735389034528,-573.1,0.00011475,2]
[346925721,1735389034537,-1554.28,0.00011475,2]
[346925722,1735389034547,-500.0,0.00011475,2]
[346925723,1735389034557,-2809.05,0.00011475,2]
[346925724,1735389034567,-755.29,0.00011475,2]
[346925725,1735389034577,-1327.83,0.00011475,2]
[346925726,1735389034587,-500.0,0.00011475,2]
[346925727,1735389034597,-835.56,0.00011475,2]
[346925728,1735389034606,-814.92,0.00011475,2]
[346925729,1735389034615,-500.0,0.00011475,2]
[346925730,1735389034625,-3914.61,0.00011475,2]
[346925731,1735389034634,-500.0,0.00011475,2]
[346925732,1735389034643,-938.71,0.00011475,2]
[346925733,1735389034655,-500.0,0.00011475,2]
[346925734,1735389034664,-2310.92,0.00011475,2]
[346925735,1735389034673,-1772.97,0.00011475,2]
[346925736,1735389034683,-2670.7,0.00011475,2]
[346925737,1735389034692,-2170.73,0.00011475,2]
[346925738,1735389034701,-540.98,0.00011475,2]
[346925739,1735389034711,-597.74,0.00011475,2]
[346925740,1735389034721,-500.0,0.00011475,2]
[346925741,1735389034731,-2160.11,0.00011475,2]
[346925742,1735389034740,-500.0,0.00011475,2]
[346925743,1735389034750,-583.24525736,0.00011475,2]
[346925744,1735389034760,-500.0,0.00011475,2]
[346925745,1735389034770,-1690.68,0.00011475,2]
[346925746,1735389034781,-1566.39,0.00011475,2]
[346925747,1735389034791,-3063.43,0.00011475,2]
[346925748,1735389034802,-500.0,0.00011475,2]
[346925749,1735389034812,-1650.75,0.00011476,2]
[346925750,1735389034821,-1159.03,0.00011476,2]
[346925751,1735389034831,-3123.71,0.00011476,2]
[346925752,1735389034841,-655.9,0.00011476,2]
[346925753,1735389034850,-1543.97,0.00011476,2]
[346925754,1735389034859,-1602.01,0.00011476,2]
[346925755,1735389034869,-1043.93,0.00011476,2]
[346925756,1735389034879,-1868.49,0.00011476,2]
[346925757,1735389034890,-2238.88,0.00011476,2]
[346925758,1735389034899,-150.0,0.00011479,2]
[346925759,1735389034909,-150.0,0.00011486,2]
[346925760,1735389034918,-150.0,0.00011502,2]
[346925761,1735389034928,-764.87,0.00011507,2]
[346925762,1735389034937,-150.0,0.00011511,2]
[346925763,1735389034947,-150.0,0.0001152,2]
[346925764,1735389034956,-150.0,0.00011525,2]
[346925765,1735389034967,-150.0,0.00011543,2]
[346925766,1735389034977,-150.0,0.00011547,2]
[346925767,1735389034986,-150.0,0.00011556,2]
[346925768,1735389034995,-150.0,0.0001157,2]
[346925769,1735389035005,-150.0,0.00011592,2]
[346925770,1735389035015,-150.0,0.000116,2]
[346925771,1735389035024,-150.0,0.000116,2]
[346925772,1735389035034,-3300.0,0.000116,4]
[346925773,1735389035043,-150.0,0.00011615,2]
[346925774,1735389035052,-150.0,0.00011638,2]
[346925775,1735389035062,-150.0,0.00011644,2]
[346925776,1735389035071,-500.0,0.00011647,2]
[346925777,1735389035080,-500.0,0.00011647,2]
[346925778,1735389035090,-500.0,0.00011647,2]
[346925779,1735389035099,-5000.0,0.00011649,2]
[346925780,1735389035109,-150.0,0.00011657,2]
[346925781,1735389035118,-150.0,0.0001166,2]
[346925782,1735389035132,-150.0,0.00011683,2]
[346925783,1735389035141,-150.0,0.00011689,2]
[346925784,1735389035150,-6600.0,0.000117,4]
[346925785,1735389035160,-152.77,0.00011701,2]
[346925786,1735389035169,-150.0,0.00011706,2]
[346925787,1735389035178,-150.0,0.00011714,2]
[346925788,1735389035188,-150.0,0.00011728,2]
[346925789,1735389035197,-150.0,0.00011733,2]
[346925790,1735389035206,-1000.0,0.00011738,2]
[346925791,1735389035215,-500.0,0.00011747,2]
[346925792,1735389035225,-500.0,0.00011747,2]
[346925793,1735389035234,-500.0,0.00011747,2]
[346925794,1735389035243,-500.0,0.00011747,2]
[346925795,1735389035252,-500.0,0.00011747,2]
[346925796,1735389035262,-500.0,0.00011747,2]
[346925797,1735389035271,-500.0,0.00011747,2]
[346925798,1735389035283,-500.0,0.00011747,2]
[346925799,1735389035292,-500.0,0.00011747,2]
[346925800,1735389035302,-500.0,0.00011747,2]
[346925801,1735389035311,-500.0,0.00011747,2]
[346925802,1735389035321,-500.0,0.00011747,2]
[346925803,1735389035330,-500.0,0.00011747,2]
[346925804,1735389035339,-500.0,0.00011747,2]
[346925805,1735389035349,-500.0,0.00011747,2]
[346925806,1735389035361,-500.0,0.00011747,2]
[346925807,1735389035371,-500.0,0.00011747,2]
[346925808,1735389035380,-500.0,0.00011747,2]
[346925809,1735389035389,-500.0,0.00011747,2]
[346925810,1735389035399,-500.0,0.00011747,2]
[346925811,1735389035408,-500.0,0.00011747,2]
[346925812,1735389035417,-500.0,0.00011747,2]
[346925813,1735389035426,-500.0,0.00011747,2]
[346925814,1735389035435,-500.0,0.00011747,2]
[346925815,1735389035445,-500.0,0.00011747,2]
[346925816,1735389035455,-500.0,0.00011747,2]
[346925817,1735389035464,-500.0,0.00011747,2]
[346925818,1735389035473,-500.0,0.00011747,2]
[346925819,1735389035483,-500.0,0.00011747,2]
[346925820,1735389035492,-500.0,0.00011747,2]
[346925821,1735389035501,-500.0,0.00011747,2]
[346925822,1735389035511,-500.0,0.00011747,2]
[346925823,1735389035521,-500.0,0.00011747,2]
[346925824,1735389035531,-500.0,0.00011747,2]
[346925825,1735389035539,-500.0,0.00011747,2]
[346925826,1735389035548,-500.0,0.00011747,2]
[346925827,1735389035558,-500.0,0.00011747,2]
[346925828,1735389035567,-500.0,0.00011747,2]
[346925829,1735389035576,-500.0,0.00011747,2]
[346925830,1735389035586,-500.0,0.00011747,2]
[346925831,1735389035595,-500.0,0.00011747,2]
[346925832,1735389035604,-500.0,0.00011747,2]
[346925833,1735389035613,-500.0,0.00011747,2]
[346925834,1735389035622,-511.12,0.00011747,2]
[346925835,1735389035631,-500.0,0.00011747,2]
[346925836,1735389035640,-500.0,0.00011747,2]
[346925837,1735389035649,-500.0,0.00011747,2]
[346925838,1735389035659,-500.0,0.00011747,2]
[346925839,1735389035667,-500.0,0.00011747,2]
[346925840,1735389035677,-500.0,0.00011747,2]
[346925841,1735389035687,-500.0,0.00011747,2]
[346925842,1735389035696,-500.0,0.00011747,2]
[346925843,1735389035705,-500.0,0.00011747,2]
[346925844,1735389035715,-500.0,0.00011747,2]
[346925845,1735389035724,-500.0,0.00011747,2]
[346925846,1735389035733,-500.0,0.00011747,2]
[346925847,1735389035743,-1717.33,0.00011747,2]
[346925848,1735389035752,-500.0,0.00011747,2]
[346925849,1735389035763,-500.0,0.00011747,2]
[346925850,1735389035772,-500.0,0.00011747,2]
[346925851,1735389035781,-500.0,0.00011747,2]
[346925852,1735389035791,-172.68027512,0.00011747,2]
[346925853,1735389035800,-500.0,0.00011747,2]
[346925854,1735389035809,-500.0,0.00011747,2]
[346925855,1735389035819,-500.0,0.00011747,2]
[346925856,1735389035828,-500.0,0.00011747,2]
[346925857,1735389035838,-500.0,0.00011747,2]
[346925858,1735389035847,-500.0,0.00011747,2]
[346925859,1735389035857,-154.75953619,0.00011747,2]
[346925860,1735389035866,-213.14313596,0.00011747,2]
[346925861,1735389035876,-500.0,0.00011747,2]
[346925862,1735389035886,-500.0,0.00011747,2]
[346925863,1735389035896,-500.0,0.00011747,2]
[346925864,1735389035905,-500.0,0.00011747,2]
[346925865,1735389035914,-500.0,0.00011747,2]
[346925866,1735389035923,-500.0,0.00011747,2]
[346925867,1735389035933,-500.0,0.00011747,2]
[346925868,1735389035942,-500.0,0.00011747,2]
[346925869,1735389035951,-500.0,0.00011747,2]
[346925870,1735389035960,-500.0,0.00011747,2]
[346925871,1735389035970,-500.0,0.00011747,2]
[346925872,1735389035979,-503.65190372,0.00011747,2]
[346925873,1735389035988,-500.0,0.00011747,2]
[346925874,1735389035997,-500.0,0.00011747,2]
[346925875,1735389036008,-526.51893731,0.00011747,2]
[346925876,1735389036017,-268.34822554,0.00011747,2]
[346925877,1735389036026,-500.0,0.00011747,2]
[346925878,1735389036035,-500.0,0.00011747,2]
[346925879,1735389036044,-500.0,0.00011747,2]
[346925880,1735389036054,-500.0,0.00011747,2]
[346925881,1735389036063,-534.67,0.00011748,2]
[346925882,1735389036072,-500.0,0.00011748,2]
[346925883,1735389036081,-500.0,0.00011748,2]
[346925884,1735389036091,-500.0,0.00011748,2]
[346925885,1735389036099,-1353.09,0.00011748,2]
[346925886,1735389036109,-500.0,0.00011748,2]
[346925887,1735389036118,-1219.9,0.00011748,2]
[346925888,1735389036127,-500.0,0.00011748,2]
[346925889,1735389036136,-963.2,0.00011748,2]
[346925890,1735389036145,-1126.64,0.00011748,2]
[346925891,1735389036155,-956.78,0.00011748,2]
[346925892,1735389036164,-2023.81,0.00011748,2]
[346925893,1735389036174,-1050.31,0.00011748,2]
[346925894,1735389036183,-5014.0,0.00011748,2]
[346925895,1735389036193,-3813.85,0.00011748,2]
[346925896,1735389036202,-500.0,0.00011748,2]
[346925897,1735389036212,-1484.14,0.00011748,2]
[346925898,1735389036221,-6656.32,0.00011748,2]
[346925899,1735389036230,-858.26,0.00011748,2]
[346925900,1735389036240,-1010.85,0.00011748,2]
[346925901,1735389036249,-900.8,0.00011748,2]
[346925902,1735389036260,-1219.33,0.00011748,2]
[346925903,1735389036269,-500.0,0.00011748,2]
[346925904,1735389036283,-2934.29,0.00011748,2]
[346925905,1735389036292,-1203.45,0.00011748,2]
[346925906,1735389036301,-500.0,0.00011748,2]
[346925907,1735389036310,-696.43,0.00011748,2]
[346925908,1735389036320,-315.48,0.00011748,2]
[346925909,1735389036330,-681.43,0.00011748,2]
[346925910,1735389036339,-1361.13,0.00011748,2]
[346925911,1735389036348,-500.0,0.00011748,2]
[346925912,1735389036357,-500.0,0.00011748,2]
[346925913,1735389036367,-532.83,0.00011748,2]
[346925914,1735389036376,-500.0,0.00011748,2]
[346925915,1735389036385,-500.0,0.00011748,2]
[346925916,1735389036394,-500.0,0.00011748,2]
[346925917,1735389036403,-554.76,0.00011748,2]
[346925918,1735389036413,-5622.82,0.00011748,2]
[346925919,1735389036422,-500.0,0.00011748,2]
[346925920,1735389036431,-574.27,0.00011748,2]
[346925921,1735389036441,-2058.70999066,0.00011748,2]
[346925922,1735389036451,-22230.96527179,0.00011748,2]
[346925923,1735389036483,-500.0,0.00011748,2]
[346925924,1735389036491,-49724.63887273,0.00011748,2]
[346925927,1735389038187,-611.96207322,0.00011201,2]
[346925928,1735389038199,-1439.17787315,0.00011201,2]
[346925929,1735389038211,-8013.03588428,0.00011201,2]
[346925938,1735389038641,-0.57221079,0.00011201,2]
[346925940,1735389038653,-323.56195856,0.00011201,2]
[346925942,1735389038662,-10388.31,0.00011475,2]
[346925944,1735389038671,-255.8,0.00011747,2]
[346925946,1735389038681,-17849.90244768,0.00011748,2]
[346925948,1735389038692,-10811.00304557,0.00011748,2]
[346925950,1735389038703,-32726.87380082,0.00011748,2]
[346925953,1735389038715,-47897.5,0.00011748,2]
[346925956,1735389038738,-2040.49520296,0.00011748,2]
[346925958,1735389038749,-2113.02589903,0.00011748,2]
[346925961,1735389038761,-5216.32132093,0.00011748,2]
[346925974,1735389040298,-500.0,0.00011474,2]
[346925975,1735389040308,-447.72946,0.00011475,2]
[346925977,1735389040574,-70.71054,0.00011475,2]
[346925978,1735389040584,-500.0,0.00011748,2]
[346925979,1735389040593,-64979.17263333,0.00011748,2]
[346926032,1735389043548,-500.0,0.00011747,2]
[346926033,1735389043558,-7505.41942825,0.00011748,2]
[346926034,1735389043604,-520.96826264,0.00011748,2]
[346926035,1735389043663,-3884.89599986,0.00011748,2]
[346926182,1735389046505,-3087.07355343,0.00011748,2]
[346926212,1735389182632,19537.93122511,0.0002,120]
[346926213,1735389182659,34401.28253141,0.0002,120]
[346926216,1735389361870,847.37,8.864e-05,2]
[346926240,1735390232582,-167.32,0.00010132,2]
[346926241,1735390232592,-173.73,0.00010137,2]
[346926242,1735390232601,-555.61,0.00010159,2]
[346926243,1735390232611,-2093.99,0.0001017,2]
[346926244,1735390232621,-1000.0,0.00010183,2]
[346926245,1735390232631,-493.07,0.00010232,2]
[346926246,1735390232640,-3366.99,0.0001035,2]
[346926247,1735390232651,-200.0,0.00010428,2]
[346926248,1735390232661,-250.0,0.00010493,2]
[346926249,1735390232671,-418.09,0.00010578,2]
[346926250,1735390232681,-33103.0,0.00010588,2]
[346926251,1735390232691,-520.35,0.00010621,2]
[346926252,1735390232700,-1000.0,0.00010622,2]
[346926253,1735390232710,-232.49,0.00010644,2]
[346926254,1735390232719,-155.55,0.00010685,2]
[346926255,1735390232729,-121985.54,0.00010685,2]
[346926256,1735390232740,-250.0,0.00010772,2]
[346926257,1735390232754,-150.0,0.00010775,2]
[346926258,1735390232764,-150.0,0.00010775,2]
[346926259,1735390232774,-150.0,0.00010775,2]
[346926260,1735390232785,-150.0,0.00010775,2]
[346926261,1735390232796,-150.0,0.00010775,2]
[346926262,1735390232805,-150.0,0.0001082,2]
[346926263,1735390232814,-150.0,0.00010864,2]
[346926264,1735390232825,-150.0,0.00010867,2]
[346926265,1735390232835,-150.0,0.00010875,2]
[346926266,1735390232844,-453.78,0.00010891,2]
[346926267,1735390232854,-150.0,0.00010908,2]
[346926268,1735390232863,-150.0,0.00010953,2]
[346926269,1735390232872,-150.0,0.0001096,2]
[346926270,1735390232882,-150.0,0.00010965,2]
[346926271,1735390232891,-150.0,0.00010975,2]
[346926272,1735390232901,-150.0,0.00010997,2]
[346926273,1735390232910,-150.0,0.00011041,2]
[346926274,1735390232919,-150.0,0.00011052,2]
[346926275,1735390232928,-150.0,0.00011075,2]
[346926276,1735390232938,-150.0,0.00011086,2]
[346926277,1735390232947,-847.37,0.00011128,2]
[346926278,1735390232956,-150.0,0.0001113,2]
[346926279,1735390232966,-523.03696479,0.00011131,2]
[346926280,1735390232975,-150.0,0.00011144,2]
[346926281,1735390232985,-150.0,0.00011174,2]
[346926282,1735390232995,-150.0,0.00011174,2]
[346926283,1735390233004,-150.0,0.00011174,2]
[346926284,1735390233014,-150.0,0.00011219,2]
[346926285,1735390233023,-150.0,0.00011236,2]
[346926286,1735390233033,-150.0,0.00011263,2]
[346926287,1735390233043,-150.0,0.00011274,2]
[346926288,1735390233053,-150.0,0.00011307,2]
[346926289,1735390233062,-150.0,0.00011328,2]
[346926290,1735390233072,-429.04098534,0.00011346,2]
[346926291,1735390233082,-150.0,0.00011352,2]
[346926292,1735390233091,-436.61,0.0001137,2]
[346926293,1735390233101,-429.83,0.0001137,2]
[346926294,1735390233111,-306.61,0.0001137,2]
[346926295,1735390233121,-300.42,0.0001137,2]
[346926296,1735390233130,-382.7,0.0001137,2]
[346926297,1735390233140,-188.56,0.0001137,2]
[346926298,1735390233150,-300.74,0.0001137,2]
[346926299,1735390233161,-150.0,0.0001137,2]
[346926300,1735390233171,-436.61,0.0001137,2]
[346926301,1735390233181,-436.61,0.0001137,2]
[346926302,1735390233191,-150.0,0.0001137,2]
[346926303,1735390233202,-150.0,0.0001137,2]
[346926304,1735390233211,-300.64,0.0001137,2]
[346926305,1735390233221,-150.0,0.00011374,2]
[346926306,1735390233231,-158.58759972,0.00011374,2]
[346926307,1735390233240,-150.0,0.00011396,2]
[346926308,1735390233251,-417.128,0.000114,2]
[346926309,1735390233260,-150.0,0.0001142,2]
[346926310,1735390233270,-555.61,0.00011429,2]
[346926311,1735390233280,-150.0,0.0001144,2]
[346926312,1735390233290,-5212.5332,0.00011452,2]
[346926313,1735390233299,-1000.0,0.00011456,2]
[346926314,1735390233309,-4781.4731,0.00011473,2]
[346926315,1735390233319,-500.0,0.00011473,2]
[346926316,1735390233329,-181.08,0.00011473,2]
[346926317,1735390233338,-1034.21,0.00011473,2]
[346926318,1735390233348,-500.0,0.00011473,2]
[346926319,1735390233358,-500.0,0.00011473,2]
[346926320,1735390233367,-549.22,0.00011473,2]
[346926321,1735390233376,-500.0,0.00011473,2]
[346926322,1735390233386,-500.0,0.00011473,2]
[346926323,1735390233395,-1103.16,0.00011473,2]
[346926324,1735390233404,-780.97,0.00011473,2]
[346926325,1735390233414,-500.0,0.00011473,2]
[346926326,1735390233423,-500.0,0.00011473,2]
[346926327,1735390233432,-607.88621005,0.00011473,2]
[346926328,1735390233441,-500.0,0.00011473,2]
[346926329,1735390233451,-638.39,0.00011473,2]
[346926330,1735390233460,-500.0,0.00011473,2]
[346926331,1735390233469,-500.0,0.00011473,2]
[346926332,1735390233478,-500.0,0.00011473,2]
[346926333,1735390233487,-600.94,0.00011473,2]
[346926334,1735390233497,-624.65,0.00011473,2]
[346926335,1735390233506,-500.0,0.00011473,2]
[346926336,1735390233515,-2214.63,0.00011473,2]
[346926337,1735390233525,-2940.96,0.00011473,2]
[346926338,1735390233534,-500.0,0.00011473,2]
[346926339,1735390233544,-500.0,0.00011473,2]
[346926340,1735390233554,-1232.82,0.00011473,2]
[346926341,1735390233563,-500.0,0.00011473,2]
[346926342,1735390233572,-500.0,0.00011473,2]
[346926343,1735390233582,-500.0,0.00011473,2]
[346926344,1735390233592,-500.0,0.00011473,2]
[346926345,1735390233602,-508.53,0.00011473,2]
[346926346,1735390233610,-526.42,0.00011473,2]
[346926347,1735390233620,-150.0,0.00011474,2]
[346926348,1735390233629,-1501.13,0.00011474,2]
[346926349,1735390233638,-3751.5,0.00011474,2]
[346926350,1735390233647,-917.7,0.00011474,2]
[346926351,1735390233656,-500.0,0.00011474,2]
[346926352,1735390233666,-625.93,0.00011474,2]
[346926353,1735390233675,-755.29,0.00011474,2]
[346926354,1735390233685,-1425.81,0.00011474,2]
[346926355,1735390233694,-867.71,0.00011474,2]
[346926356,1735390233703,-500.0,0.00011474,2]
[346926357,1735390233712,-977.99,0.00011474,2]
[346926358,1735390233722,-500.0,0.00011474,2]
[346926359,1735390233731,-1849.95,0.00011474,2]
[346926360,1735390233742,-500.0,0.00011474,2]
[346926361,1735390233754,-500.0,0.00011474,2]
[346926362,1735390233763,-598.88176169,0.00011474,2]
[346926363,1735390233773,-500.0,0.00011474,2]
[346926364,1735390233782,-3087.04,0.00011474,2]
[346926365,1735390233792,-500.0,0.00011474,2]
[346926366,1735390233801,-500.0,0.00011474,2]
[346926367,1735390233810,-500.0,0.00011474,2]
[346926368,1735390233820,-2812.45,0.00011474,2]
[346926369,1735390233830,-500.0,0.00011474,2]
[346926370,1735390233840,-500.0,0.00011474,2]
[346926371,1735390233850,-500.0,0.00011474,2]
[346926372,1735390233860,-17268.35,0.00011474,2]
[346926373,1735390233869,-500.0,0.00011474,2]
[346926374,1735390233878,-1264.7,0.00011474,2]
[346926375,1735390233887,-500.0,0.00011474,2]
[346926376,1735390233897,-500.0,0.00011474,2]
[346926377,1735390233906,-500.0,0.00011474,2]
[346926378,1735390233915,-1424.76,0.00011474,2]
[346926379,1735390233924,-500.0,0.00011474,2]
[346926380,1735390233933,-500.0,0.00011474,2]
[346926381,1735390233943,-500.0,0.00011474,2]
[346926382,1735390233952,-1217.17,0.00011474,2]
[346926383,1735390233962,-500.0,0.00011474,2]
[346926384,1735390233971,-500.0,0.00011474,2]
[346926385,1735390233980,-500.0,0.00011474,2]
[346926386,1735390233990,-352.12,0.00011474,2]
[346926387,1735390233999,-500.0,0.00011474,2]
[346926388,1735390234008,-500.0,0.00011474,2]
[346926389,1735390234017,-860.49,0.00011474,2]
[346926390,1735390234027,-500.0,0.00011474,2]
[346926391,1735390234036,-500.0,0.00011474,2]
[346926392,1735390234045,-529.75,0.00011474,2]
[346926393,1735390234054,-500.0,0.00011474,2]
[346926394,1735390234063,-4596.17,0.00011474,2]
[346926395,1735390234073,-500.0,0.00011474,2]
[346926396,1735390234082,-500.0,0.00011474,2]
[346926397,1735390234091,-500.0,0.00011474,2]
[346926398,1735390234100,-500.0,0.00011474,2]
[346926399,1735390234110,-340.11465774,0.00011474,2]
[346926400,1735390234119,-500.0,0.00011474,2]
[346926401,1735390234128,-500.0,0.00011474,2]
[346926402,1735390234137,-500.0,0.00011474,2]
[346926403,1735390234146,-2288.69,0.00011474,2]
[346926404,1735390234155,-500.0,0.00011474,2]
[346926405,1735390234164,-3496.03,0.00011474,2]
[346926406,1735390234174,-500.0,0.00011474,2]
[346926407,1735390234183,-500.0,0.00011474,2]
[346926408,1735390234193,-9522.62,0.00011474,2]
[346926409,1735390234202,-500.0,0.00011474,2]
[346926410,1735390234211,-500.0,0.00011474,2]
[346926411,1735390234220,-500.0,0.00011474,2]
[346926412,1735390234229,-500.0,0.00011474,2]
[346926413,1735390234239,-547.93,0.00011474,2]
[346926414,1735390234249,-1360.46,0.00011474,2]
[346926415,1735390234258,-1549.79,0.00011474,2]
[346926416,1735390234268,-6101.63,0.00011474,2]
[346926417,1735390234277,-1513.18,0.00011474,2]
[346926418,1735390234287,-1062.44,0.00011474,2]
[346926419,1735390234296,-2863.41,0.00011474,2]
[346926420,1735390234306,-786.74,0.00011474,2]
[346926421,1735390234315,-601.24,0.00011474,2]
[346926422,1735390234324,-926.61,0.00011474,2]
[346926423,1735390234333,-1415.31,0.00011474,2]
[346926424,1735390234342,-1468.5,0.00011474,2]
[346926425,1735390234351,-1117.71,0.00011474,2]
[346926426,1735390234360,-825.73,0.00011474,2]
[346926427,1735390234369,-956.94,0.00011474,2]
[346926428,1735390234378,-2689.76,0.00011475,2]
[346926429,1735390234387,-1247.7,0.00011475,2]
[346926430,1735390234396,-2692.01,0.00011475,2]
[346926431,1735390234405,-2129.45,0.00011475,2]
[346926432,1735390234414,-5154.25,0.00011475,2]
[346926433,1735390234423,-800.74,0.00011475,2]
[346926434,1735390234432,-1633.11,0.00011475,2]
[346926435,1735390234442,-2052.31,0.00011475,2]
[346926436,1735390234451,-1699.1,0.00011475,2]
[346926437,1735390234460,-500.0,0.00011475,2]
[346926438,1735390234469,-150.0,0.00011485,2]
[346926439,1735390234479,-2800.0,0.000115,4]
[346926440,1735390234488,-2751.0,0.00011507,2]
[346926441,1735390234497,-150.0,0.00011512,2]
[346926442,1735390234507,-150.0,0.00011529,2]
[346926443,1735390234517,-1000.0,0.00011549,2]
[346926444,1735390234526,-150.0,0.00011574,2]
[346926445,1735390234536,-150.0,0.00011574,2]
[346926446,1735390234546,-150.0,0.00011574,2]
[346926447,1735390234556,-5600.0,0.000116,4]
[346926448,1735390234565,-150.0,0.00011604,2]
[346926449,1735390234575,-150.0,0.00011618,2]
[346926450,1735390234584,-500.0,0.00011648,2]
[346926451,1735390234593,-500.0,0.00011648,2]
[346926452,1735390234603,-320.04,0.00011648,2]
[346926453,1735390234612,-500.0,0.00011648,2]
[346926454,1735390234622,-211.96,0.00011648,2]